[Event "Rapid Tournament (RAP)"]
[Site "Biel, Switzerland"]
[Date "2026.07.12"]
[Round "7.49"]
[White "Filimonov, Arsenii"]
[Black "Gheorghiu, Alexandru"]
[Result "0-1"]
[TimeControl "15 + 5"]
[WhiteTitle "-"]
[BlackTitle "-"]
[WhiteFideId "34171584"]
[BlackFideId "1363573"]
[WhiteElo "1843"]
[BlackElo "1647"]

1. e4 {[%clk 00:15:07]} {[%emt 00:00:02]} c6 {[%clk 00:15:09]} {[%emt
00:00:02]} 2. d4 {[%clk 00:15:09]} {[%emt 00:00:03]} d5 {[%clk 00:15:13]}
{[%emt 00:00:01]} 3. exd5 {[%clk 00:15:13]} {[%emt 00:00:02]} cxd5 {[%clk
00:15:18]} 4. Bd3 {[%clk 00:15:14]} {[%emt 00:00:03]} Nc6 {[%clk 00:15:22]}
{[%emt 00:00:01]} 5. c3 {[%clk 00:15:18]} {[%emt 00:00:02]} Nf6 {[%clk
00:15:25]} 6. Bf4 {[%clk 00:15:22]} {[%emt 00:00:02]} h6 {[%clk 00:15:28]}
{[%emt 00:00:02]} 7. h3 {[%clk 00:15:12]} {[%emt 00:00:15]} e6 {[%clk
00:15:29]} {[%emt 00:00:04]} 8. Nf3 {[%clk 00:15:12]} {[%emt 00:00:04]} Bd6
{[%clk 00:15:29]} {[%emt 00:00:05]} 9. Bxd6 {[%clk 00:15:04]} {[%emt 00:00:13]}
Qxd6 {[%clk 00:15:33]} {[%emt 00:00:02]} 10. Qe2 {[%clk 00:15:08]} O-O {[%clk
00:15:35]} {[%emt 00:00:03]} 11. O-O {[%clk 00:15:08]} {[%emt 00:00:05]} Re8
{[%clk 00:15:38]} {[%emt 00:00:01]} 12. Re1 {[%clk 00:15:10]} {[%emt 00:00:03]}
Nh5 {[%clk 00:15:28]} {[%emt 00:00:15]} 13. Ne5 {[%clk 00:14:51]} {[%emt
00:00:24]} Nf4 {[%clk 00:15:28]} {[%emt 00:00:05]} 14. Qf3 {[%clk 00:14:49]}
{[%emt 00:00:07]} f6 {[%clk 00:14:54]} {[%emt 00:00:39]} 15. Qxf4 {[%clk
00:14:40]} {[%emt 00:00:14]} fxe5 {[%clk 00:14:58]} {[%emt 00:00:02]} 16. dxe5
{[%clk 00:14:43]} {[%emt 00:00:01]} Qc7 {[%clk 00:14:53]} {[%emt 00:00:11]} 17.
Nd2 {[%clk 00:13:14]} {[%emt 00:01:34]} Qb6 {[%clk 00:14:53]} {[%emt 00:00:04]}
18. Nb3 {[%clk 00:13:10]} {[%emt 00:00:08]} Rf8 {[%clk 00:14:55]} {[%emt
00:00:03]} 19. Qg3 {[%clk 00:13:13]} {[%emt 00:00:03]} Bd7 {[%clk 00:14:30]}
{[%emt 00:00:30]} 20. Re2 {[%clk 00:12:50]} {[%emt 00:00:27]} g5 {[%clk
00:13:18]} {[%emt 00:01:16]} 21. h4 {[%clk 00:12:29]} {[%emt 00:00:28]} Qd8
{[%clk 00:13:08]} {[%emt 00:00:15]} 22. Nc5 {[%clk 00:12:28]} {[%emt 00:00:07]}
Rf7 {[%clk 00:12:25]} {[%emt 00:00:47]} 23. Nxb7 {[%clk 00:12:23]} {[%emt
00:00:10]} Qe7 {[%clk 00:12:20]} {[%emt 00:00:08]} 24. Nd6 {[%clk 00:12:05]}
{[%emt 00:00:25]} Rg7 {[%clk 00:12:19]} {[%emt 00:00:04]} 25. h5 {[%clk
00:10:48]} {[%emt 00:01:25]} Rf8 {[%clk 00:12:14]} {[%emt 00:00:09]} 26. Rf1
{[%clk 00:08:36]} {[%emt 00:02:18]} Rf4 {[%clk 00:12:05]} {[%emt 00:00:12]} 27.
Nb5 {[%clk 00:08:21]} {[%emt 00:00:21]} Be8 {[%clk 00:11:31]} {[%emt 00:00:39]}
28. Qh2 {[%clk 00:07:42]} {[%emt 00:00:44]} Rgf7 {[%clk 00:10:13]} {[%emt
00:01:23]} 29. Nd6 {[%clk 00:07:36]} {[%emt 00:00:11]} Rf8 {[%clk 00:10:06]}
{[%emt 00:00:10]} 30. Nxe8 {[%clk 00:07:37]} {[%emt 00:00:06]} Qxe8 {[%clk
00:10:08]} {[%emt 00:00:03]} 31. g3 {[%clk 00:06:45]} {[%emt 00:00:58]} Rf3
{[%clk 00:09:49]} {[%emt 00:00:23]} 32. Bb5 {[%clk 00:06:39]} {[%emt 00:00:11]}
Qc8 {[%clk 00:09:52]} {[%emt 00:00:03]} 33. Bxc6 {[%clk 00:05:39]} {[%emt
00:01:04]} Qxc6 {[%clk 00:09:55]} {[%emt 00:00:02]} 34. Re3 {[%clk 00:05:42]}
{[%emt 00:00:02]} Rxe3 {[%clk 00:09:35]} {[%emt 00:00:25]} 35. fxe3 {[%clk
00:05:46]} {[%emt 00:00:02]} Rxf1+ {[%clk 00:09:39]} 36. Kxf1 {[%clk 00:05:50]}
{[%emt 00:00:01]} Qc4+ {[%clk 00:09:38]} 37. Kg1 {[%clk 00:05:28]} {[%emt
00:00:31]} Qxa2 {[%clk 00:09:36]} {[%emt 00:00:08]} 38. Qc2 {[%clk 00:05:31]}
{[%emt 00:00:01]} Kf8 {[%clk 00:09:18]} {[%emt 00:00:22]} 39. Qf2+ {[%clk
00:04:14]} {[%emt 00:01:23]} Ke8 {[%clk 00:09:19]} {[%emt 00:00:04]} 40. Kh2
{[%clk 00:04:09]} {[%emt 00:00:10]} a5 {[%clk 00:08:41]} {[%emt 00:00:44]} 41.
Qe2 {[%clk 00:03:47]} {[%emt 00:00:27]} Qc4 {[%clk 00:08:22]} {[%emt 00:00:23]}
42. Qc2 {[%clk 00:03:18]} {[%emt 00:00:34]} g4 {[%clk 00:07:10]} {[%emt
00:01:17]} 43. Qg6+ {[%clk 00:03:20]} {[%emt 00:00:03]} Kd8 {[%clk 00:07:10]}
{[%emt 00:00:04]} 44. Qg8+ {[%clk 00:03:13]} {[%emt 00:00:13]} Kd7 {[%clk
00:06:49]} {[%emt 00:00:24]} 45. Qf7+ {[%clk 00:03:12]} {[%emt 00:00:07]} Kd8
{[%clk 00:06:45]} {[%emt 00:00:08]} 46. Qf8+ {[%clk 00:03:14]} {[%emt
00:00:05]} Kc7 {[%clk 00:06:44]} {[%emt 00:00:05]} 47. Qd6+ {[%clk 00:03:12]}
{[%emt 00:00:08]} Kb7 {[%clk 00:06:42]} {[%emt 00:00:06]} 48. Qd7+ {[%clk
00:03:03]} {[%emt 00:00:16]} Kb8 {[%clk 00:06:23]} {[%emt 00:00:23]} 49. Qe8+
{[%clk 00:02:38]} {[%emt 00:00:31]} Kb7 {[%clk 00:06:15]} {[%emt 00:00:11]} 50.
Qf7+ {[%clk 00:02:41]} {[%emt 00:00:03]} Kb8 {[%clk 00:06:14]} {[%emt
00:00:05]} 51. Qf2 {[%clk 00:02:34]} {[%emt 00:00:13]} a4 {[%clk 00:05:56]}
{[%emt 00:00:23]} 52. Kg1 {[%clk 00:02:24]} {[%emt 00:00:14]} Qe4 {[%clk
00:05:45]} {[%emt 00:00:17]} 53. Qf8+ {[%clk 00:00:50]} {[%emt 00:01:40]} Kb7
{[%clk 00:05:46]} {[%emt 00:00:03]} 54. Qe7+ {[%clk 00:00:42]} {[%emt
00:00:13]} Kb8 {[%clk 00:05:42]} {[%emt 00:00:08]} 55. Qe8+ {[%clk 00:00:46]}
{[%emt 00:00:02]} Kb7 {[%clk 00:05:45]} {[%emt 00:00:03]} 56. Qb5+ {[%clk
00:00:48]} {[%emt 00:00:02]} Ka7 {[%clk 00:05:29]} {[%emt 00:00:20]} 57. Qc5+
{[%clk 00:00:47]} {[%emt 00:00:08]} Ka6 {[%clk 00:03:47]} {[%emt 00:01:47]} 58.
Qc8+ {[%clk 00:00:26]} {[%emt 00:00:25]} Kb5 {[%clk 00:03:33]} {[%emt
00:00:19]} 59. Qb7+ {[%clk 00:00:10]} {[%emt 00:00:22]} Kc4 {[%clk 00:03:31]}
{[%emt 00:00:06]} 60. Qa6+ {[%clk 00:00:11]} {[%emt 00:00:05]} Kb3 {[%clk
00:03:27]} {[%emt 00:00:07]} 61. Qb5+ {[%clk 00:00:11]} {[%emt 00:00:06]} Ka2
{[%clk 00:03:15]} {[%emt 00:00:16]} 62. Qe2 {[%clk 00:00:08]} {[%emt 00:00:09]}
Qb1+ {[%clk 00:03:13]} {[%emt 00:00:07]} 63. Kf2 {[%clk 00:00:08]} {[%emt
00:00:05]} Qxb2 {[%clk 00:03:16]} {[%emt 00:00:03]} 64. e4 {[%clk 00:00:10]}
{[%emt 00:00:03]} Qxe2 {[%clk 00:03:18]} {[%emt 00:00:03]} 65. Kxe2 {[%clk
00:00:14]} {[%emt 00:00:01]} dxe4 {[%clk 00:03:22]} 66. c4 {[%clk 00:00:18]}
{[%emt 00:00:01]} Kb3 {[%clk 00:03:25]} {[%emt 00:00:02]} 67. c5 {[%clk
00:00:22]} {[%emt 00:00:01]} a3 {[%clk 00:03:30]} {[%emt 00:00:01]} 68. c6
{[%clk 00:00:26]} a2 {[%clk 00:03:34]} 69. c7 {[%clk 00:00:30]} a1=Q {[%clk
00:03:36]} {[%emt 00:00:02]} 70. c8=Q {[%clk 00:00:33]} {[%emt 00:00:03]} Qb2+
{[%clk 00:03:32]} {[%emt 00:00:07]} 71. Kf1 {[%clk 00:00:32]} {[%emt 00:00:07]}
Qb1+ {[%clk 00:03:22]} {[%emt 00:00:15]} 72. Ke2 {[%clk 00:00:15]} {[%emt
00:00:23]} Qd3+ {[%clk 00:03:20]} {[%emt 00:00:05]} 73. Kf2 {[%clk 00:00:14]}
{[%emt 00:00:05]} e3+ {[%clk 00:03:21]} {[%emt 00:00:05]} 74. Kg2 {[%clk
00:00:17]} {[%emt 00:00:03]} Qd2+ {[%clk 00:03:23]} {[%emt 00:00:04]} 75. Kh1
{[%clk 00:00:20]} {[%emt 00:00:02]} Qd1+ {[%clk 00:03:07]} {[%emt 00:00:21]} 76.
Kg2 {[%clk 00:00:13]} {[%emt 00:00:10]} Qc2+ {[%clk 00:03:09]} {[%emt
00:00:04]} 77. Qxc2+ {[%clk 00:00:14]} {[%emt 00:00:05]} Kxc2 {[%clk 00:03:12]}
{[%emt 00:00:01]} 78. Kf1 {[%clk 00:00:18]} Kd2 {[%clk 00:03:16]} {[%emt
00:00:03]} 79. Kg2 {[%clk 00:00:19]} {[%emt 00:00:04]} e2 {[%clk 00:03:19]}
{[%emt 00:00:02]} 80. Kf2 {[%clk 00:00:23]} {[%emt 00:00:01]} e1=Q {[%clk
00:03:20]} {[%emt 00:00:05]} 81. Kg2 {[%clk 00:00:27]} Qe2 {[%clk 00:03:18]}
{[%emt 00:00:07]} 82. Kg1 {[%clk 00:00:30]} {[%emt 00:00:02]} Ke3 {[%clk
00:03:21]} {[%emt 00:00:02]} 83. Kh1 {[%clk 00:00:34]} Kf3 {[%clk 00:03:25]}
{[%emt 00:00:01]} 84. Kg1 {[%clk 00:00:38]} {[%emt 00:00:01]} Kxg3 {[%clk
00:03:28]} {[%emt 00:00:02]} 85. Kh1 {[%clk 00:00:42]} {[%emt 00:00:01]} Kh3
{[%clk 00:03:32]} {[%emt 00:00:01]} 86. Kg1 {[%clk 00:00:46]} g3 {[%clk
00:03:35]} {[%emt 00:00:01]} 87. Kh1 {[%clk 00:00:50]} g2+ {[%clk 00:03:39]}
{[%emt 00:00:02]} 88. Kg1 {[%clk 00:00:55]} Qf1# {[%emt 00:00:02]} 0-1

[Event "Rapid Tournament (RAP)"]
[Site "Biel, Switzerland"]
[Date "2026.07.12"]
[Round "7.50"]
[White "Martin, Gerome"]
[Black "Radovcic, Branimir"]
[Result "0-1"]
[TimeControl "15 + 5"]
[WhiteTitle "-"]
[BlackTitle "-"]
[WhiteFideId "1360817"]
[BlackFideId "14595346"]
[WhiteElo "1757"]
[BlackElo "1840"]

1. d4 {[%clk 00:14:55]} {[%emt 00:00:15]} Nf6 {[%clk 00:15:01]} {[%emt
00:00:10]} 2. c4 {[%clk 00:14:55]} {[%emt 00:00:04]} c5 {[%clk 00:15:05]}
{[%emt 00:00:02]} 3. d5 {[%clk 00:14:52]} {[%emt 00:00:07]} b5 {[%clk
00:15:09]} {[%emt 00:00:01]} 4. cxb5 {[%clk 00:12:48]} {[%emt 00:02:09]} a6
{[%clk 00:15:13]} {[%emt 00:00:01]} 5. e3 {[%clk 00:12:41]} {[%emt 00:00:12]}
axb5 {[%clk 00:15:17]} {[%emt 00:00:02]} 6. Be2 {[%clk 00:11:52]} {[%emt
00:00:54]} Bb7 {[%clk 00:14:36]} {[%emt 00:00:45]} 7. Bf3 {[%clk 00:10:54]}
{[%emt 00:01:03]} d6 {[%clk 00:13:38]} {[%emt 00:01:04]} 8. Ne2 {[%clk
00:09:53]} {[%emt 00:01:05]} g6 {[%clk 00:13:33]} {[%emt 00:00:10]} 9. Qb3
{[%clk 00:09:15]} {[%emt 00:00:43]} Ba6 {[%clk 00:13:16]} {[%emt 00:00:23]} 10.
O-O {[%clk 00:08:52]} {[%emt 00:00:27]} Bg7 {[%clk 00:13:19]} {[%emt 00:00:02]}
11. e4 {[%clk 00:08:11]} {[%emt 00:00:46]} Nbd7 {[%clk 00:13:17]} {[%emt
00:00:08]} 12. Re1 {[%clk 00:07:41]} {[%emt 00:00:34]} O-O {[%clk 00:13:16]}
{[%emt 00:00:06]} 13. a3 {[%clk 00:06:20]} {[%emt 00:01:26]} Qb6 {[%clk
00:11:56]} {[%emt 00:01:26]} 14. Be3 {[%clk 00:06:06]} {[%emt 00:00:18]} Rfb8
{[%clk 00:11:38]} {[%emt 00:00:23]} 15. Nbc3 {[%clk 00:05:32]} {[%emt
00:00:40]} Ne5 {[%clk 00:11:25]} {[%emt 00:00:18]} 16. Qc2 {[%clk 00:05:09]}
{[%emt 00:00:27]} Nxf3+ {[%clk 00:11:10]} {[%emt 00:00:21]} 17. gxf3 {[%clk
00:05:13]} {[%emt 00:00:01]} Nd7 {[%clk 00:11:13]} {[%emt 00:00:02]} 18. f4
{[%clk 00:05:00]} {[%emt 00:00:18]} Qc7 {[%clk 00:10:55]} {[%emt 00:00:24]} 19.
h4 {[%clk 00:03:55]} {[%emt 00:01:09]} b4 {[%clk 00:10:53]} {[%emt 00:00:06]}
20. axb4 {[%clk 00:03:45]} {[%emt 00:00:16]} cxb4 {[%clk 00:10:55]} {[%emt
00:00:02]} 21. Bd4 {[%clk 00:02:37]} {[%emt 00:01:13]} Bxe2 {[%clk 00:10:19]}
{[%emt 00:00:41]} 22. Bxg7 {[%clk 00:02:23]} {[%emt 00:00:19]} Kxg7 {[%clk
00:10:14]} {[%emt 00:00:09]} 23. Qxe2 {[%clk 00:01:28]} {[%emt 00:01:01]} bxc3
{[%clk 00:10:17]} {[%emt 00:00:03]} 24. Rac1 {[%clk 00:01:28]} {[%emt
00:00:05]} Ra2 {[%clk 00:08:53]} {[%emt 00:01:28]} 25. Rxc3 {[%clk 00:00:44]}
{[%emt 00:00:50]} Qxc3 {[%clk 00:08:56]} {[%emt 00:00:02]} 26. bxc3 {[%clk
00:00:48]} {[%emt 00:00:02]} Rxe2 {[%clk 00:08:59]} {[%emt 00:00:01]} 27. Rxe2
{[%clk 00:00:51]} {[%emt 00:00:02]} Rc8 {[%clk 00:09:00]} {[%emt 00:00:03]} 28.
Rc2 {[%clk 00:00:45]} {[%emt 00:00:12]} Nb6 {[%clk 00:09:03]} {[%emt 00:00:02]}
29. Kg2 {[%clk 00:00:36]} {[%emt 00:00:14]} Na4 {[%clk 00:09:06]} {[%emt
00:00:02]} 30. c4 {[%clk 00:00:37]} {[%emt 00:00:04]} Nc5 {[%clk 00:09:09]}
{[%emt 00:00:02]} 31. Kf3 {[%clk 00:00:38]} {[%emt 00:00:04]} Nb3 {[%clk
00:09:11]} {[%emt 00:00:03]} 32. Ke3 {[%clk 00:00:38]} {[%emt 00:00:05]} Kf6
{[%clk 00:08:51]} {[%emt 00:00:24]} 33. Rc3 {[%clk 00:00:41]} {[%emt 00:00:02]}
Nc5 {[%clk 00:08:46]} {[%emt 00:00:10]} 34. Kd4 {[%clk 00:00:27]} {[%emt
00:00:20]} Ra8 {[%clk 00:08:43]} {[%emt 00:00:07]} 35. e5+ {[%clk 00:00:30]}
{[%emt 00:00:03]} Kf5 {[%clk 00:08:46]} {[%emt 00:00:02]} 36. exd6 {[%clk
00:00:19]} {[%emt 00:00:16]} exd6 {[%clk 00:08:49]} {[%emt 00:00:02]} 37. Re3
{[%clk 00:00:12]} {[%emt 00:00:11]} Ra2 {[%clk 00:08:23]} {[%emt 00:00:32]} 38.
Re7 {[%clk 00:00:11]} {[%emt 00:00:05]} Kf6 {[%clk 00:08:13]} {[%emt 00:00:14]}
39. Rc7 {[%clk 00:00:16]} {[%emt 00:00:02]} Rxf2 {[%clk 00:08:14]} {[%emt
00:00:04]} 40. Rxc5 {[%clk 00:00:16]} {[%emt 00:00:05]} dxc5+ {[%clk 00:07:08]}
{[%emt 00:01:11]} 41. Kxc5 {[%clk 00:00:19]} {[%emt 00:00:01]} Ke7 {[%clk
00:07:12]} {[%emt 00:00:01]} 42. Kc6 {[%clk 00:00:15]} {[%emt 00:00:09]} Kd8
{[%clk 00:07:13]} {[%emt 00:00:04]} 43. d6 {[%clk 00:00:09]} {[%emt 00:00:11]}
Rxf4 {[%clk 00:07:16]} {[%emt 00:00:02]} 44. c5 {[%clk 00:00:14]} {[%emt
00:00:01]} Rxh4 {[%clk 00:07:04]} {[%emt 00:00:17]} 45. Kb7 {[%clk 00:00:18]}
{[%emt 00:00:01]} Kd7 {[%clk 00:06:56]} {[%emt 00:00:13]} 0-1

[Event "Rapid Tournament (RAP)"]
[Site "Biel, Switzerland"]
[Date "2026.07.12"]
[Round "7.51"]
[White "Ziegler, Andrin"]
[Black "Gireada, Lucas"]
[Result "0-1"]
[TimeControl "15 + 5"]
[WhiteTitle "-"]
[BlackTitle "-"]
[WhiteFideId "1364138"]
[BlackFideId "1373544"]
[WhiteElo "1730"]
[BlackElo "1837"]

1. d4 {[%clk 00:15:07]} {[%emt 00:00:02]} Nf6 {[%clk 00:14:06]} {[%emt
00:01:06]} 2. c4 {[%clk 00:15:10]} {[%emt 00:00:02]} g6 {[%clk 00:14:06]}
{[%emt 00:00:05]} 3. Nf3 {[%clk 00:15:06]} {[%emt 00:00:09]} Bg7 {[%clk
00:14:10]} 4. g3 {[%clk 00:15:10]} d5 {[%clk 00:14:13]} {[%emt 00:00:02]} 5.
Bg2 {[%clk 00:15:08]} {[%emt 00:00:06]} O-O {[%clk 00:14:07]} {[%emt 00:00:11]}
6. O-O {[%clk 00:15:12]} {[%emt 00:00:02]} c6 {[%clk 00:13:45]} {[%emt
00:00:27]} 7. Nc3 {[%clk 00:15:13]} {[%emt 00:00:04]} Re8 {[%clk 00:13:26]}
{[%emt 00:00:24]} 8. cxd5 {[%clk 00:15:05]} {[%emt 00:00:13]} cxd5 {[%clk
00:13:15]} {[%emt 00:00:16]} 9. h4 {[%clk 00:13:28]} {[%emt 00:01:42]} Nc6
{[%clk 00:13:15]} {[%emt 00:00:06]} 10. Bf4 {[%clk 00:12:10]} {[%emt 00:01:21]}
Ne4 {[%clk 00:13:18]} {[%emt 00:00:02]} 11. e3 {[%clk 00:11:08]} {[%emt
00:01:07]} Nf6 {[%clk 00:12:34]} {[%emt 00:00:49]} 12. Qb3 {[%clk 00:08:27]}
{[%emt 00:02:46]} a6 {[%clk 00:12:18]} {[%emt 00:00:22]} 13. Nd2 {[%clk
00:08:19]} {[%emt 00:00:13]} e6 {[%clk 00:12:07]} {[%emt 00:00:16]} 14. Rfe1
{[%clk 00:08:09]} {[%emt 00:00:15]} Nh5 {[%clk 00:11:52]} {[%emt 00:00:20]} 15.
Ne2 {[%clk 00:07:03]} {[%emt 00:01:11]} Nxf4 16. Nxf4 {[%clk 00:07:07]} Na5
{[%clk 00:10:52]} {[%emt 00:00:58]} 17. Qc2 {[%clk 00:06:50]} {[%emt 00:00:21]}
Bd7 {[%clk 00:10:38]} {[%emt 00:00:18]} 18. Rac1 {[%clk 00:05:58]} {[%emt
00:00:58]} Rc8 {[%clk 00:10:26]} {[%emt 00:00:17]} 19. Qb1 {[%clk 00:06:02]}
{[%emt 00:00:01]} Qb6 {[%clk 00:10:05]} {[%emt 00:00:25]} 20. Bh3 {[%clk
00:05:30]} {[%emt 00:00:38]} Qd6 {[%clk 00:08:22]} {[%emt 00:01:48]} 21. b4
{[%clk 00:04:47]} {[%emt 00:00:48]} Nc6 {[%clk 00:08:11]} {[%emt 00:00:15]} 22.
a3 {[%clk 00:04:03]} {[%emt 00:00:50]} e5 {[%clk 00:07:03]} {[%emt 00:01:13]}
23. Bxd7 {[%clk 00:03:58]} {[%emt 00:00:09]} Qxd7 {[%clk 00:07:06]} {[%emt
00:00:03]} 24. dxe5 {[%clk 00:03:43]} {[%emt 00:00:20]} Nxe5 {[%clk 00:06:50]}
{[%emt 00:00:21]} 25. Rxc8 {[%clk 00:03:17]} {[%emt 00:00:31]} Rxc8 {[%clk
00:06:53]} {[%emt 00:00:02]} 26. Rc1 {[%clk 00:03:21]} {[%emt 00:00:01]} h6
{[%clk 00:06:31]} {[%emt 00:00:28]} 27. Kg2 {[%clk 00:02:23]} {[%emt 00:01:02]}
Rc6 {[%clk 00:05:26]} {[%emt 00:01:10]} 28. Rxc6 {[%clk 00:02:04]} {[%emt
00:00:24]} Qxc6 {[%clk 00:05:21]} {[%emt 00:00:10]} 29. Kh2 {[%clk 00:01:37]}
{[%emt 00:00:31]} b5 {[%clk 00:05:11]} {[%emt 00:00:16]} 30. Qb3 {[%clk
00:01:16]} {[%emt 00:00:26]} Nc4 {[%clk 00:05:12]} {[%emt 00:00:04]} 31. Nxc4
{[%clk 00:00:45]} {[%emt 00:00:35]} dxc4 {[%clk 00:05:13]} {[%emt 00:00:05]} 32.
Qc2 {[%clk 00:00:44]} {[%emt 00:00:06]} c3 {[%clk 00:05:02]} {[%emt 00:00:15]}
33. Ne2 {[%clk 00:00:41]} {[%emt 00:00:08]} Qd6 {[%clk 00:04:52]} {[%emt
00:00:15]} 34. Nxc3 {[%clk 00:00:17]} {[%emt 00:00:30]} Qc6 {[%clk 00:04:55]}
{[%emt 00:00:01]} 35. e4 {[%clk 00:00:06]} {[%emt 00:00:16]} Qxc3 {[%clk
00:04:55]} {[%emt 00:00:06]} 36. Qxc3 {[%clk 00:00:11]} Bxc3 {[%clk 00:04:58]}
{[%emt 00:00:02]} 37. Kg2 {[%clk 00:00:15]} Bb2 {[%clk 00:05:02]} {[%emt
00:00:02]} 38. a4 {[%clk 00:00:20]} {[%emt 00:00:01]} bxa4 {[%clk 00:05:05]}
{[%emt 00:00:01]} 0-1

[Event "Rapid Tournament (RAP)"]
[Site "Biel, Switzerland"]
[Date "2026.07.12"]
[Round "7.53"]
[White "Jaussi, Kevin"]
[Black "Gheorghiu, Gabriel-Ion"]
[Result "0-1"]
[TimeControl "15 + 5"]
[WhiteTitle "-"]
[BlackTitle "-"]
[WhiteFideId "1324721"]
[BlackFideId "1248820"]
[WhiteElo "1859"]
[BlackElo "1679"]

1. d4 {[%clk 00:15:06]} d5 {[%clk 00:15:06]} 2. Bf4 {[%clk 00:15:06]} c6 {[%clk
00:15:12]} {[%emt 00:50:08]} 3. e3 {[%clk 00:15:13]} e6 {[%clk 00:15:12]} 4.
Nf3 {[%clk 00:15:13]} f5 {[%clk 00:15:17]} {[%emt 01:40:24]} 5. h3 {[%clk
00:15:06]} Nf6 {[%clk 00:15:20]} {[%emt 00:00:06]} 6. Nbd2 {[%clk 00:15:07]}
Bd6 {[%clk 00:15:21]} {[%emt 00:00:09]} 7. Ne5 {[%clk 00:15:10]} O-O {[%clk
00:15:22]} {[%emt 00:00:05]} 8. Bd3 {[%clk 00:15:11]} Ne4 {[%clk 00:15:23]}
{[%emt 00:00:08]} 9. c3 {[%clk 00:15:06]} Bc7 {[%clk 00:15:25]} {[%emt
00:00:13]} 10. O-O {[%clk 00:15:03]} Nd7 {[%clk 00:15:27]} {[%emt 00:00:12]} 11.
Ndf3 {[%clk 00:14:59]} Nxe5 {[%clk 00:13:24]} {[%emt 00:02:16]} 12. Bxe5 {[%clk
00:14:56]} Bd6 {[%clk 00:12:12]} {[%emt 00:01:25]} 0-1

[Event "Rapid Tournament (RAP)"]
[Site "Biel, Switzerland"]
[Date "2026.07.12"]
[Round "7.54"]
[White "Gast, Michael"]
[Black "Gaier, Walter"]
[Result "0-1"]
[TimeControl "15 + 5"]
[WhiteTitle "-"]
[BlackTitle "-"]
[WhiteFideId "1373196"]
[BlackFideId "1310186"]
[WhiteElo "1682"]
[BlackElo "1832"]

1. e4 {[%clk 00:15:07]} {[%emt 00:00:02]} c5 {[%clk 00:15:09]} {[%emt
00:00:02]} 2. a3 {[%clk 00:15:07]} {[%emt 00:00:05]} b6 {[%clk 00:14:24]}
{[%emt 00:00:51]} 3. Nc3 {[%clk 00:14:59]} {[%emt 00:00:13]} Bb7 {[%clk
00:14:22]} {[%emt 00:00:07]} 4. Nf3 {[%clk 00:14:23]} {[%emt 00:00:40]} Nc6
{[%clk 00:13:35]} {[%emt 00:00:53]} 5. d4 {[%clk 00:14:22]} {[%emt 00:00:05]}
cxd4 {[%clk 00:11:26]} {[%emt 00:02:16]} 6. Nxd4 {[%clk 00:14:23]} {[%emt
00:00:04]} g6 {[%clk 00:09:22]} {[%emt 00:02:08]} 7. Nxc6 {[%clk 00:13:27]}
{[%emt 00:01:01]} dxc6 {[%clk 00:09:25]} {[%emt 00:00:02]} 8. Be3 {[%clk
00:13:03]} {[%emt 00:00:29]} Bg7 {[%clk 00:09:26]} {[%emt 00:00:04]} 9. Be2
{[%clk 00:12:49]} {[%emt 00:00:19]} Qc7 {[%clk 00:09:15]} {[%emt 00:00:16]} 10.
Qc1 {[%clk 00:12:28]} {[%emt 00:00:26]} h5 {[%clk 00:08:46]} {[%emt 00:00:34]}
11. O-O {[%clk 00:12:15]} {[%emt 00:00:19]} Nf6 {[%clk 00:07:44]} {[%emt
00:01:07]} 12. Bd4 {[%clk 00:10:14]} {[%emt 00:02:05]} Ng4 {[%clk 00:07:06]}
{[%emt 00:00:43]} 13. Bxg4 {[%clk 00:09:57]} {[%emt 00:00:22]} hxg4 {[%clk
00:07:09]} {[%emt 00:00:02]} 14. e5 {[%clk 00:09:44]} {[%emt 00:00:19]} c5
{[%clk 00:06:38]} {[%emt 00:00:35]} 15. Be3 {[%clk 00:09:11]} {[%emt 00:00:38]}
Bxe5 {[%clk 00:06:31]} {[%emt 00:00:12]} 16. g3 {[%clk 00:09:13]} {[%emt
00:00:03]} Qc6 {[%clk 00:05:51]} {[%emt 00:00:45]} 17. f3 {[%clk 00:09:17]}
{[%emt 00:00:01]} gxf3 {[%clk 00:05:52]} {[%emt 00:00:05]} 18. Bf4 {[%clk
00:08:51]} {[%emt 00:00:30]} Bd4+ {[%clk 00:05:26]} {[%emt 00:00:32]} 19. Be3
{[%clk 00:08:38]} {[%emt 00:00:18]} f2+ {[%clk 00:02:34]} {[%emt 00:02:56]} 20.
Kxf2 {[%clk 00:08:39]} {[%emt 00:00:04]} Rxh2+ {[%clk 00:02:31]} {[%emt
00:00:08]} 21. Ke1 {[%clk 00:08:37]} {[%emt 00:00:08]} Qg2 {[%clk 00:01:48]}
{[%emt 00:00:47]} 22. Qd2 {[%clk 00:08:16]} {[%emt 00:00:26]} Qxg3+ {[%clk
00:01:41]} {[%emt 00:00:12]} 23. Bf2 {[%clk 00:08:03]} {[%emt 00:00:18]} Qe5+
{[%clk 00:00:54]} {[%emt 00:00:52]} 24. Qe2 {[%clk 00:07:53]} {[%emt 00:00:15]}
Bxc3+ {[%clk 00:00:28]} {[%emt 00:00:32]} 25. bxc3 {[%clk 00:07:17]} {[%emt
00:00:41]} Qxc3+ {[%clk 00:00:28]} {[%emt 00:00:04]} 26. Qd2 {[%clk 00:07:20]}
{[%emt 00:00:02]} Qxa1+ {[%clk 00:00:28]} {[%emt 00:00:05]} 27. Ke2 {[%clk
00:07:23]} {[%emt 00:00:02]} Ba6+ {[%clk 00:00:31]} {[%emt 00:00:02]} 28. Kf3
{[%clk 00:07:16]} {[%emt 00:00:12]} Qxf1 {[%clk 00:00:26]} {[%emt 00:00:09]} 29.
Qd5 {[%clk 00:06:56]} {[%emt 00:00:26]} Qh1+ {[%clk 00:00:26]} {[%emt
00:00:05]} 0-1